[Event "Early-Titled-Tuesday-Blitz-June-18-2024"]
[Site "Chess.com"]
[Date "2024.06.18"]
[Round "2"]
[White "FlemingA"]
[Black "vladislavkovalev"]
[Result "0-1"]
[WhiteElo "2468"]
[BlackElo "2839"]
[TimeControl "180+1"]
[EndTime "8:15:18 PDT"]
[Termination "vladislavkovalev won by resignation"]

1. Nf3 {[%clk 0:03:00]} 1... Nf6 {[%clk 0:03:00.1]} 2. g3 {[%clk 0:03:00.1]}
2... d5 {[%clk 0:03:00.3]} 3. Bg2 {[%clk 0:03:00.5]} 3... c6 {[%clk 0:03:00.8]}
4. O-O {[%clk 0:03:00.8]} 4... Bf5 {[%clk 0:03:01.2]} 5. c4 {[%clk 0:02:59.9]}
5... e6 {[%clk 0:03:01]} 6. Qb3 {[%clk 0:03:00.1]} 6... Qb6 {[%clk 0:03:00.8]}
7. d3 {[%clk 0:03:00.6]} 7... Nbd7 {[%clk 0:02:54]} 8. Be3 {[%clk 0:02:58.4]}
8... Bc5 {[%clk 0:02:42.3]} 9. Bxc5 {[%clk 0:02:50.4]} 9... Nxc5 {[%clk
0:02:42.5]} 10. Qxb6 {[%clk 0:02:41.5]} 10... axb6 {[%clk 0:02:43.4]} 11. Nd4
{[%clk 0:02:41.7]} 11... dxc4 {[%clk 0:02:40.9]} 12. dxc4 {[%clk 0:02:30.6]}
12... Bg6 {[%clk 0:02:26.4]} 13. Nc3 {[%clk 0:02:30.4]} 13... Ke7 {[%clk
0:02:26.4]} 14. Nf3 {[%clk 0:02:22.8]} 14... Rhd8 {[%clk 0:02:25.2]} 15. Ne5
{[%clk 0:02:23]} 15... Na4 {[%clk 0:02:01.9]} 16. Nxg6+ {[%clk 0:02:16.5]} 16...
hxg6 {[%clk 0:02:01.8]} 17. Nxa4 {[%clk 0:02:17.4]} 17... Rxa4 {[%clk
0:02:02.6]} 18. b3 {[%clk 0:02:16.1]} 18... Ra3 {[%clk 0:02:02.9]} 19. b4 {[%clk
0:02:04.4]} 19... Rd2 {[%clk 0:01:56.3]} 20. e3 {[%clk 0:01:47.3]} 20... Raxa2
{[%clk 0:01:53.9]} 21. b5 {[%clk 0:01:43.5]} 21... Rxf2 {[%clk 0:01:39]} 22.
Rxa2 {[%clk 0:01:41.1]} 22... Rxa2 {[%clk 0:01:39.9]} 23. bxc6 {[%clk
0:01:41.5]} 23... bxc6 {[%clk 0:01:40.8]} 24. Bxc6 {[%clk 0:01:42.4]} 24... Ng4
{[%clk 0:01:32.4]} 25. Rb1 {[%clk 0:01:28.7]} 0-1

[Event "Early-Titled-Tuesday-Blitz-June-18-2024"]
[Site "Chess.com"]
[Date "2024.06.18"]
[Round "2"]
[White "AustinThomas12345"]
[Black "campochess"]
[Result "1-0"]
[WhiteElo "2487"]
[BlackElo "2228"]
[TimeControl "180+1"]
[EndTime "8:15:31 PDT"]
[Termination "AustinThomas12345 won by resignation"]

1. e4 {[%clk 0:03:00.9]} 1... c5 {[%clk 0:02:49.6]} 2. Nf3 {[%clk 0:02:58.7]}
2... Nc6 {[%clk 0:02:48]} 3. b3 {[%clk 0:02:57.8]} 3... f6 {[%clk 0:02:45.5]} 4.
Bb2 {[%clk 0:02:57.4]} 4... e5 {[%clk 0:02:45.4]} 5. Bb5 {[%clk 0:02:54.9]} 5...
Nge7 {[%clk 0:02:45.2]} 6. d3 {[%clk 0:02:53.8]} 6... Nd4 {[%clk 0:02:42.8]} 7.
Nxd4 {[%clk 0:02:51.7]} 7... cxd4 {[%clk 0:02:40.1]} 8. f4 {[%clk 0:02:43.5]}
8... Qa5+ {[%clk 0:02:38.2]} 9. Nd2 {[%clk 0:02:31.3]} 9... Qxb5 {[%clk
0:02:36.5]} 10. Nc4 {[%clk 0:02:30.5]} 10... Ng6 {[%clk 0:02:27.7]} 11. f5
{[%clk 0:02:27.9]} 11... d5 {[%clk 0:02:13.6]} 12. exd5 {[%clk 0:01:20.3]} 12...
Nf4 {[%clk 0:02:06.9]} 13. O-O {[%clk 0:01:16]} 13... Qxd5 {[%clk 0:02:02.3]}
14. Rxf4 {[%clk 0:01:00.6]} 14... exf4 {[%clk 0:02:00.6]} 15. Qh5+ {[%clk
0:00:56.1]} 15... Qf7 {[%clk 0:01:52]} 16. Re1+ {[%clk 0:00:55]} 16... Kd8
{[%clk 0:01:40.7]} 17. Qxf7 {[%clk 0:00:54.4]} 17... Bc5 {[%clk 0:01:34.2]} 18.
Qd5+ {[%clk 0:00:53.1]} 1-0

[Event "Early-Titled-Tuesday-Blitz-June-18-2024"]
[Site "Chess.com"]
[Date "2024.06.18"]
[Round "2"]
[White "Andrey-Ivanov2011"]
[Black "rubicapa"]
[Result "1-0"]
[WhiteElo "2066"]
[BlackElo "2432"]
[TimeControl "180+1"]
[EndTime "8:15:33 PDT"]
[Termination "Andrey-Ivanov2011 won by resignation"]

1. e4 {[%clk 0:03:00.9]} 1... e6 {[%clk 0:02:57.7]} 2. d4 {[%clk 0:02:58.1]}
2... d5 {[%clk 0:02:58.6]} 3. Nd2 {[%clk 0:02:57.6]} 3... c5 {[%clk 0:02:55.8]}
4. exd5 {[%clk 0:02:52]} 4... exd5 {[%clk 0:02:56.7]} 5. Ngf3 {[%clk 0:02:51]}
5... Nc6 {[%clk 0:02:57]} 6. Bb5 {[%clk 0:02:48.5]} 6... Bd6 {[%clk 0:02:56.3]}
7. O-O {[%clk 0:02:47.5]} 7... Ne7 {[%clk 0:02:55.5]} 8. dxc5 {[%clk 0:02:47.9]}
8... Bxc5 {[%clk 0:02:53.3]} 9. Nb3 {[%clk 0:02:46.2]} 9... Bb6 {[%clk
0:02:52.6]} 10. Bg5 {[%clk 0:02:38.2]} 10... O-O {[%clk 0:02:51.2]} 11. Re1
{[%clk 0:02:38.2]} 11... Qd6 {[%clk 0:02:49.9]} 12. Bxe7 {[%clk 0:02:21.1]}
12... Nxe7 {[%clk 0:02:48.1]} 13. Nbd4 {[%clk 0:02:20.3]} 13... Bg4 {[%clk
0:02:41.3]} 14. Qd3 {[%clk 0:02:17.5]} 14... Nc6 {[%clk 0:02:33.6]} 15. Bxc6
{[%clk 0:02:14.9]} 15... bxc6 {[%clk 0:02:33.6]} 16. h3 {[%clk 0:02:11.6]} 16...
Bh5 {[%clk 0:02:29.2]} 17. Nf5 {[%clk 0:02:10.5]} 17... Qf6 {[%clk 0:02:27.2]}
18. Ne7+ {[%clk 0:02:00.7]} 18... Kh8 {[%clk 0:02:25.4]} 19. Qf5 {[%clk
0:01:46.6]} 19... Qxf5 {[%clk 0:01:51.8]} 20. Nxf5 {[%clk 0:01:46.8]} 20... Rfe8
{[%clk 0:01:27.6]} 21. Ne5 {[%clk 0:01:41.2]} 21... Rac8 {[%clk 0:01:21.7]} 22.
Nd6 {[%clk 0:01:40.2]} 22... Rcd8 {[%clk 0:01:18.1]} 23. Nxe8 {[%clk 0:01:26.6]}
23... Rxe8 {[%clk 0:01:15.6]} 24. g4 {[%clk 0:01:24.7]} 24... Bg6 {[%clk
0:01:13.8]} 25. Nxg6+ {[%clk 0:01:24.7]} 1-0

[Event "Early-Titled-Tuesday-Blitz-June-18-2024"]
[Site "Chess.com"]
[Date "2024.06.18"]
[Round "2"]
[White "chrisclaireredfield"]
[Black "Sofia_Blokhin"]
[Result "0-1"]
[WhiteElo "2498"]
[BlackElo "2311"]
[TimeControl "180+1"]
[EndTime "8:15:39 PDT"]
[Termination "Sofia_Blokhin won by resignation"]

1. Nf3 {[%clk 0:03:00.9]} 1... g6 {[%clk 0:02:56.9]} 2. g3 {[%clk 0:03:00.1]}
2... Bg7 {[%clk 0:02:56.8]} 3. Bg2 {[%clk 0:03:00.3]} 3... f5 {[%clk 0:02:56.8]}
4. d3 {[%clk 0:02:58.7]} 4... Nf6 {[%clk 0:02:56.7]} 5. Nbd2 {[%clk 0:02:57.3]}
5... O-O {[%clk 0:02:56.7]} 6. e4 {[%clk 0:02:57.5]} 6... d6 {[%clk 0:02:54.9]}
7. O-O {[%clk 0:02:56.2]} 7... fxe4 {[%clk 0:02:52.3]} 8. Nxe4 {[%clk
0:02:54.2]} 8... Nc6 {[%clk 0:02:45]} 9. h3 {[%clk 0:02:48.6]} 9... e5 {[%clk
0:02:42.4]} 10. Bg5 {[%clk 0:02:39.5]} 10... h6 {[%clk 0:02:40.5]} 11. Nxf6+
{[%clk 0:02:38.2]} 11... Bxf6 {[%clk 0:02:35.9]} 12. Bxh6 {[%clk 0:02:38.2]}
12... Rf7 {[%clk 0:02:34]} 13. Qd2 {[%clk 0:02:30.4]} 13... Rh7 {[%clk
0:02:27.5]} 14. h4 {[%clk 0:02:25.3]} 14... Bg4 {[%clk 0:02:19]} 15. Bg5 {[%clk
0:02:14.9]} 15... Bxf3 {[%clk 0:01:56.8]} 16. Bxf3 {[%clk 0:02:14.6]} 16... Nd4
{[%clk 0:01:53.6]} 17. Bxb7 {[%clk 0:02:09.4]} 17... c6 {[%clk 0:01:48.2]} 18.
Bxc6 {[%clk 0:01:10.6]} 18... Nxc6 {[%clk 0:01:47.1]} 19. f4 {[%clk 0:01:02.4]}
19... Bxg5 {[%clk 0:01:32.8]} 20. fxg5 {[%clk 0:01:01.9]} 20... Nd4 {[%clk
0:01:29.5]} 21. Rf6 {[%clk 0:01:00.1]} 21... Qxf6 {[%clk 0:01:27.1]} 0-1

[Event "Early-Titled-Tuesday-Blitz-June-18-2024"]
[Site "Chess.com"]
[Date "2024.06.18"]
[Round "2"]
[White "Dewarfd"]
[Black "RamonManon0g"]
[Result "0-1"]
[WhiteElo "2131"]
[BlackElo "2466"]
[TimeControl "180+1"]
[EndTime "8:15:47 PDT"]
[Termination "RamonManon0g won on time"]

1. Nf3 {[%clk 0:03:00.9]} 1... Nf6 {[%clk 0:02:59.5]} 2. c4 {[%clk 0:03:00.4]}
2... g6 {[%clk 0:03:00.4]} 3. b4 {[%clk 0:02:59.7]} 3... Bg7 {[%clk 0:03:00]} 4.
Bb2 {[%clk 0:03:00]} 4... O-O {[%clk 0:03:00.7]} 5. g3 {[%clk 0:02:58.8]} 5...
c6 {[%clk 0:02:59.9]} 6. Bg2 {[%clk 0:02:58.3]} 6... d5 {[%clk 0:03:00.8]} 7.
cxd5 {[%clk 0:02:58.3]} 7... cxd5 {[%clk 0:03:01.1]} 8. O-O {[%clk 0:02:58]}
8... a6 {[%clk 0:03:00.8]} 9. Qb3 {[%clk 0:02:48.9]} 9... Nc6 {[%clk 0:03:00.7]}
10. e3 {[%clk 0:02:38]} 10... Bg4 {[%clk 0:02:58.9]} 11. Nc3 {[%clk 0:02:28.9]}
11... Rc8 {[%clk 0:02:41.3]} 12. a4 {[%clk 0:02:17.8]} 12... Qd7 {[%clk
0:02:38.6]} 13. b5 {[%clk 0:02:11.6]} 13... Na5 {[%clk 0:02:37.4]} 14. Qb4
{[%clk 0:01:43.1]} 14... Nc4 {[%clk 0:02:37.1]} 15. d4 {[%clk 0:00:29.4]} 15...
a5 {[%clk 0:02:33.8]} 16. Qb3 {[%clk 0:00:21.1]} 16... Bxf3 {[%clk 0:02:33.4]}
17. Bxf3 {[%clk 0:00:22]} 17... Nd2 {[%clk 0:02:33.8]} 18. Qd1 {[%clk
0:00:18.4]} 18... Nxf1 {[%clk 0:02:33.7]} 19. Qxf1 {[%clk 0:00:17.9]} 19... Rc7
{[%clk 0:02:30.2]} 20. Ne2 {[%clk 0:00:15.7]} 20... Rc2 {[%clk 0:02:27.8]} 21.
Ba3 {[%clk 0:00:14.6]} 21... Rfc8 {[%clk 0:02:26.4]} 22. Nf4 {[%clk 0:00:13.5]}
22... Ne4 {[%clk 0:02:26.8]} 23. Bxe4 {[%clk 0:00:05.3]} 23... dxe4 {[%clk
0:02:27.7]} 24. Kg2 {[%clk 0:00:03.7]} 24... e5 {[%clk 0:02:19.4]} 25. dxe5
{[%clk 0:00:01.1]} 25... Bxe5 {[%clk 0:02:20.3]} 26. Rd1 {[%clk 0:00:01]} 26...
Rd2 {[%clk 0:02:20.8]} 0-1

[Event "Early-Titled-Tuesday-Blitz-June-18-2024"]
[Site "Chess.com"]
[Date "2024.06.18"]
[Round "2"]
[White "FARIZA2018"]
[Black "Eagle_2019"]
[Result "0-1"]
[WhiteElo "2596"]
[BlackElo "2855"]
[TimeControl "180+1"]
[EndTime "8:15:52 PDT"]
[Termination "Eagle_2019 won by resignation"]

1. e4 {[%clk 0:03:00.9]} 1... c5 {[%clk 0:02:52.9]} 2. Nf3 {[%clk 0:03:00.6]}
2... a6 {[%clk 0:02:52.8]} 3. c4 {[%clk 0:03:00]} 3... Nc6 {[%clk 0:02:52.2]} 4.
d4 {[%clk 0:02:59.7]} 4... cxd4 {[%clk 0:02:52.2]} 5. Nxd4 {[%clk 0:03:00.3]}
5... e5 {[%clk 0:02:52]} 6. Nf5 {[%clk 0:02:52.6]} 6... d5 {[%clk 0:02:41.5]} 7.
cxd5 {[%clk 0:02:35.7]} 7... Bxf5 {[%clk 0:02:37.4]} 8. exf5 {[%clk 0:02:35.5]}
8... Nd4 {[%clk 0:02:37.3]} 9. Nc3 {[%clk 0:02:20.3]} 9... Nf6 {[%clk
0:02:34.1]} 10. Bg5 {[%clk 0:02:04.5]} 10... Qb6 {[%clk 0:02:29.1]} 11. Bxf6
{[%clk 0:01:39.9]} 11... Qxb2 {[%clk 0:02:16.6]} 12. Rc1 {[%clk 0:01:19.7]}
12... gxf6 {[%clk 0:01:54]} 13. Bd3 {[%clk 0:01:07.4]} 13... Bh6 {[%clk
0:01:36.8]} 14. Rc2 {[%clk 0:01:02.2]} 14... Nxc2+ {[%clk 0:01:30.5]} 15. Qxc2
{[%clk 0:01:02]} 15... Qxc2 {[%clk 0:01:29.3]} 16. Bxc2 {[%clk 0:01:02]} 16...
Rc8 {[%clk 0:01:29]} 0-1

[Event "Early-Titled-Tuesday-Blitz-June-18-2024"]
[Site "Chess.com"]
[Date "2024.06.18"]
[Round "2"]
[White "SmirnovAlexandrA"]
[Black "penguingm1"]
[Result "0-1"]
[WhiteElo "2643"]
[BlackElo "2965"]
[TimeControl "180+1"]
[EndTime "8:15:57 PDT"]
[Termination "penguingm1 won by resignation"]

1. e4 {[%clk 0:02:59.8]} 1... e5 {[%clk 0:03:00]} 2. Nf3 {[%clk 0:02:57.9]} 2...
Nc6 {[%clk 0:02:59.8]} 3. Bc4 {[%clk 0:02:57.2]} 3... Nf6 {[%clk 0:02:59.9]} 4.
d3 {[%clk 0:02:54.9]} 4... h6 {[%clk 0:02:59.8]} 5. Nc3 {[%clk 0:02:54]} 5... d6
{[%clk 0:02:57]} 6. h3 {[%clk 0:02:53.5]} 6... g6 {[%clk 0:02:57]} 7. Be3 {[%clk
0:02:53.1]} 7... Bg7 {[%clk 0:02:57.3]} 8. g4 {[%clk 0:02:53.5]} 8... a6 {[%clk
0:02:56.6]} 9. a3 {[%clk 0:02:53.5]} 9... Qe7 {[%clk 0:02:53.5]} 10. Qd2 {[%clk
0:02:51.9]} 10... Be6 {[%clk 0:02:53.9]} 11. O-O-O {[%clk 0:02:45.2]} 11...
O-O-O {[%clk 0:02:27.1]} 12. Kb1 {[%clk 0:02:41.1]} 12... d5 {[%clk 0:02:16.5]}
13. exd5 {[%clk 0:02:38.5]} 13... Nxd5 {[%clk 0:02:13.4]} 14. Nxd5 {[%clk
0:02:38.5]} 14... Bxd5 {[%clk 0:02:14.3]} 15. Bxd5 {[%clk 0:02:37.4]} 15... Rxd5
{[%clk 0:02:15.2]} 16. Rhe1 {[%clk 0:02:33]} 16... e4 {[%clk 0:02:10.5]} 17. Ng1
{[%clk 0:02:17.6]} 17... Qf6 {[%clk 0:02:09.2]} 18. Qc1 {[%clk 0:02:10.3]} 18...
Rb5 {[%clk 0:01:42.8]} 19. d4 {[%clk 0:02:06.4]} 19... Na5 {[%clk 0:01:43]} 20.
c4 {[%clk 0:01:58.3]} 20... Rb3 {[%clk 0:01:41.7]} 21. Ne2 {[%clk 0:01:47.9]}
21... Qc6 {[%clk 0:01:40.4]} 22. Ka2 {[%clk 0:01:41.9]} 22... Qa4 {[%clk
0:01:36.7]} 23. Nc3 {[%clk 0:01:34.4]} 23... Qxc4 {[%clk 0:01:35.1]} 24. Kb1
{[%clk 0:01:18.2]} 24... Re8 {[%clk 0:01:24.7]} 25. Na2 {[%clk 0:01:08.3]} 25...
Qa4 {[%clk 0:01:21.3]} 26. Ka1 {[%clk 0:01:05.8]} 26... Rxa3 {[%clk 0:01:17.9]}
0-1

[Event "Early-Titled-Tuesday-Blitz-June-18-2024"]
[Site "Chess.com"]
[Date "2024.06.18"]
[Round "2"]
[White "TheAlienParty"]
[Black "Barboval"]
[Result "1/2-1/2"]
[WhiteElo "2326"]
[BlackElo "2528"]
[TimeControl "180+1"]
[EndTime "8:16:10 PDT"]
[Termination "Game drawn by repetition"]

1. Nf3 {[%clk 0:03:00]} 1... Nf6 {[%clk 0:02:54.8]} 2. b3 {[%clk 0:02:56.7]}
2... d5 {[%clk 0:02:50.4]} 3. Bb2 {[%clk 0:02:57]} 3... Bg4 {[%clk 0:02:50.8]}
4. e3 {[%clk 0:02:55.5]} 4... e6 {[%clk 0:02:50.3]} 5. Be2 {[%clk 0:02:55.1]}
5... Be7 {[%clk 0:02:50]} 6. Ne5 {[%clk 0:02:53.8]} 6... Bxe2 {[%clk 0:02:49.4]}
7. Qxe2 {[%clk 0:02:54.1]} 7... O-O {[%clk 0:02:50]} 8. O-O {[%clk 0:02:54.1]}
8... Nbd7 {[%clk 0:02:49.7]} 9. f4 {[%clk 0:02:54.3]} 9... Nxe5 {[%clk
0:02:49.8]} 10. fxe5 {[%clk 0:02:53.6]} 10... Nd7 {[%clk 0:02:50.1]} 11. d3
{[%clk 0:02:53.6]} 11... c5 {[%clk 0:02:49.8]} 12. Nd2 {[%clk 0:02:53.7]} 12...
Qc7 {[%clk 0:02:49.7]} 13. Nf3 {[%clk 0:02:53.1]} 13... b5 {[%clk 0:02:45.9]}
14. Rf2 {[%clk 0:02:52.8]} 14... c4 {[%clk 0:02:38.1]} 15. Bd4 {[%clk
0:02:49.2]} 15... cxb3 {[%clk 0:02:23.5]} 16. cxb3 {[%clk 0:02:46.5]} 16... a5
{[%clk 0:02:19.4]} 17. h4 {[%clk 0:02:41.7]} 17... a4 {[%clk 0:02:19]} 18. bxa4
{[%clk 0:02:40.7]} 18... Rxa4 {[%clk 0:02:10.3]} 19. Qb2 {[%clk 0:02:36.2]}
19... Rb4 {[%clk 0:01:57.3]} 20. Rc1 {[%clk 0:02:27.2]} 20... Qb7 {[%clk
0:01:44.1]} 21. Qc3 {[%clk 0:02:24]} 21... Nb6 {[%clk 0:01:39.1]} 22. Qc7 {[%clk
0:02:22.5]} 22... Rb8 {[%clk 0:00:47.4]} 23. Bxb6 {[%clk 0:02:18.2]} 23... Qxb6
{[%clk 0:00:47.9]} 24. Qxe7 {[%clk 0:02:16.4]} 24... Qxe3 {[%clk 0:00:47.5]} 25.
Rc7 {[%clk 0:02:07.8]} 25... Rf4 {[%clk 0:00:47.2]} 26. d4 {[%clk 0:02:01.8]}
26... h6 {[%clk 0:00:39.9]} 27. Rb7 {[%clk 0:02:01.2]} 27... Rc8 {[%clk
0:00:37.1]} 28. Rc7 {[%clk 0:01:59]} 28... Ra8 {[%clk 0:00:32.2]} 29. Ra7 {[%clk
0:01:58.6]} 29... Rc8 {[%clk 0:00:32.3]} 30. Rc7 {[%clk 0:01:44.9]} 30... Ra8
{[%clk 0:00:32.4]} 31. Ra7 {[%clk 0:01:44.6]} 31... Rc8 {[%clk 0:00:32.5]} 32.
Rc7 {[%clk 0:01:44.4]} 1/2-1/2

[Event "Early-Titled-Tuesday-Blitz-June-18-2024"]
[Site "Chess.com"]
[Date "2024.06.18"]
[Round "2"]
[White "Louis-Paulsen-Fan"]
[Black "edgarhay012"]
[Result "1-0"]
[WhiteElo "2431"]
[BlackElo "2674"]
[TimeControl "180+1"]
[EndTime "8:16:16 PDT"]
[Termination "Louis-Paulsen-Fan won by resignation"]

1. d4 {[%clk 0:03:00.9]} 1... Nf6 {[%clk 0:02:59.7]} 2. Nf3 {[%clk 0:03:00.9]}
2... e6 {[%clk 0:02:59]} 3. c4 {[%clk 0:03:00.9]} 3... c5 {[%clk 0:02:57.7]} 4.
d5 {[%clk 0:03:00.5]} 4... b5 {[%clk 0:02:58.2]} 5. dxe6 {[%clk 0:03:00]} 5...
fxe6 {[%clk 0:02:58.5]} 6. cxb5 {[%clk 0:03:00.5]} 6... d5 {[%clk 0:02:59.1]} 7.
g3 {[%clk 0:03:00.6]} 7... Be7 {[%clk 0:02:57.6]} 8. Bg2 {[%clk 0:02:51.5]} 8...
O-O {[%clk 0:02:58]} 9. O-O {[%clk 0:02:51.5]} 9... Nbd7 {[%clk 0:02:55.8]} 10.
Nc3 {[%clk 0:02:42.7]} 10... Bb7 {[%clk 0:02:53.9]} 11. Ng5 {[%clk 0:02:39.5]}
11... Qb6 {[%clk 0:02:51]} 12. e4 {[%clk 0:02:33.5]} 12... d4 {[%clk 0:02:47.6]}
13. Na4 {[%clk 0:02:33.5]} 13... Qd6 {[%clk 0:02:43.6]} 14. e5 {[%clk
0:02:27.9]} 14... Nxe5 {[%clk 0:02:21.7]} 15. Bxb7 {[%clk 0:02:26.7]} 15... Rab8
{[%clk 0:02:21.8]} 16. Bg2 {[%clk 0:02:21.2]} 16... h6 {[%clk 0:02:11.2]} 17.
Ne4 {[%clk 0:02:16.8]} 17... Nxe4 {[%clk 0:02:11.6]} 18. Bxe4 {[%clk 0:02:17.4]}
18... Rxb5 {[%clk 0:02:11.8]} 19. b3 {[%clk 0:02:12.5]} 19... Bf6 {[%clk
0:02:00]} 20. Ba3 {[%clk 0:02:11.6]} 20... d3 {[%clk 0:01:32.8]} 21. Rc1 {[%clk
0:02:11.3]} 21... Bg5 {[%clk 0:01:22.9]} 22. Rxc5 {[%clk 0:02:06.7]} 22... Qd4
{[%clk 0:01:11.4]} 23. Rxb5 {[%clk 0:01:59.1]} 23... Qxe4 {[%clk 0:01:11.4]} 24.
Rxe5 {[%clk 0:01:59.1]} 24... Qxe5 {[%clk 0:01:12.3]} 25. Bxf8 {[%clk
0:01:58.8]} 25... Qe4 {[%clk 0:01:08.6]} 26. Bc5 {[%clk 0:01:53.3]} 26... h5
{[%clk 0:01:08.1]} 27. Qxh5 {[%clk 0:01:47.8]} 27... Bd2 {[%clk 0:01:08.1]} 28.
Rd1 {[%clk 0:01:23.3]} 28... Qe2 {[%clk 0:01:05.3]} 29. Qxe2 {[%clk 0:01:23.1]}
29... dxe2 {[%clk 0:01:06.2]} 30. Rb1 {[%clk 0:01:23.3]} 30... e1=Q+ {[%clk
0:01:03.8]} 31. Rxe1 {[%clk 0:01:22.9]} 31... Bxe1 {[%clk 0:01:04.7]} 32. Bxa7
{[%clk 0:01:20.1]} 32... Kf7 {[%clk 0:01:04.9]} 33. Bd4 {[%clk 0:01:15.8]} 33...
g5 {[%clk 0:01:04.3]} 34. Bc3 {[%clk 0:01:13.6]} 1-0

[Event "Early-Titled-Tuesday-Blitz-June-18-2024"]
[Site "Chess.com"]
[Date "2024.06.18"]
[Round "2"]
[White "Kgli1m"]
[Black "Philosopherrr"]
[Result "0-1"]
[WhiteElo "2096"]
[BlackElo "2464"]
[TimeControl "180+1"]
[EndTime "8:16:18 PDT"]
[Termination "Philosopherrr won by checkmate"]

1. d4 {[%clk 0:02:59.5]} 1... Nf6 {[%clk 0:02:45]} 2. Bf4 {[%clk 0:02:59]} 2...
d6 {[%clk 0:02:29.8]} 3. e3 {[%clk 0:02:58.8]} 3... g6 {[%clk 0:02:29.3]} 4. Nf3
{[%clk 0:02:58.7]} 4... Bg7 {[%clk 0:02:29.9]} 5. h3 {[%clk 0:02:59]} 5... O-O
{[%clk 0:02:30.8]} 6. Be2 {[%clk 0:02:59.1]} 6... Nc6 {[%clk 0:02:31.2]} 7. c3
{[%clk 0:02:59.3]} 7... e5 {[%clk 0:02:29]} 8. Bg5 {[%clk 0:02:59.2]} 8... e4
{[%clk 0:02:28.1]} 9. Nfd2 {[%clk 0:02:59]} 9... d5 {[%clk 0:02:28]} 10. a4
{[%clk 0:02:57.2]} 10... Ne7 {[%clk 0:02:27.1]} 11. b4 {[%clk 0:02:57.2]} 11...
c6 {[%clk 0:02:26.7]} 12. c4 {[%clk 0:02:56.3]} 12... h6 {[%clk 0:02:27]} 13.
Bxf6 {[%clk 0:02:55.8]} 13... Bxf6 {[%clk 0:02:26.7]} 14. Nc3 {[%clk 0:02:56.4]}
14... Be6 {[%clk 0:02:25.9]} 15. Qb3 {[%clk 0:02:55.6]} 15... Qd7 {[%clk
0:02:25.8]} 16. b5 {[%clk 0:02:54.4]} 16... Bg7 {[%clk 0:02:25]} 17. a5 {[%clk
0:02:45]} 17... a6 {[%clk 0:02:23.6]} 18. bxc6 {[%clk 0:02:36.4]} 18... bxc6
{[%clk 0:02:23.4]} 19. Rb1 {[%clk 0:02:36.3]} 19... Kh7 {[%clk 0:02:19.3]} 20.
Qb7 {[%clk 0:02:33.8]} 20... Rfb8 {[%clk 0:02:13.5]} 21. Qxd7 {[%clk 0:02:30.7]}
21... Rxb1+ {[%clk 0:02:13.3]} 22. Ncxb1 {[%clk 0:02:26.3]} 22... Bxd7 {[%clk
0:02:13.1]} 23. Kd1 {[%clk 0:02:20.7]} 23... c5 {[%clk 0:02:03]} 24. dxc5 {[%clk
0:02:11.5]} 24... Ba4+ {[%clk 0:02:02.9]} 25. Ke1 {[%clk 0:02:04.7]} 25... f5
{[%clk 0:01:58.3]} 26. f3 {[%clk 0:02:01.9]} 26... Rb8 {[%clk 0:01:54.7]} 27.
cxd5 {[%clk 0:01:43]} 27... Nxd5 {[%clk 0:01:54.1]} 28. Bc4 {[%clk 0:01:42.8]}
28... Nxe3 {[%clk 0:01:54.2]} 29. Bxa6 {[%clk 0:01:40.2]} 29... Nxg2+ {[%clk
0:01:54.1]} 30. Kf2 {[%clk 0:01:39.5]} 30... e3+ {[%clk 0:01:51.3]} 31. Kxg2
{[%clk 0:01:38.1]} 31... exd2 {[%clk 0:01:52]} 32. c6 {[%clk 0:01:32.3]} 32...
Rb2 {[%clk 0:01:48.3]} 33. Kg3 {[%clk 0:01:23.8]} 33... d1=Q {[%clk 0:01:46.9]}
34. Rxd1 {[%clk 0:01:18.5]} 34... Bxd1 {[%clk 0:01:47.8]} 35. f4 {[%clk
0:01:10.2]} 35... Rc2 {[%clk 0:01:35.1]} 36. Bb7 {[%clk 0:01:05.7]} 36... Bd4
{[%clk 0:01:34.6]} 37. Na3 {[%clk 0:01:01.2]} 37... Rc3+ {[%clk 0:01:33.8]} 38.
Kg2 {[%clk 0:00:59.4]} 38... Bf3+ {[%clk 0:01:32.4]} 39. Kf1 {[%clk 0:00:57.8]}
39... Rc1# {[%clk 0:01:32.4]} 0-1

[Event "Early-Titled-Tuesday-Blitz-June-18-2024"]
[Site "Chess.com"]
[Date "2024.06.18"]
[Round "2"]
[White "Emp3rador"]
[Black "ClauAmura"]
[Result "1-0"]
[WhiteElo "2620"]
[BlackElo "2394"]
[TimeControl "180+1"]
[EndTime "8:16:23 PDT"]
[Termination "Emp3rador won by resignation"]

1. e4 {[%clk 0:02:52.5]} 1... c5 {[%clk 0:03:00]} 2. Nf3 {[%clk 0:02:50.2]} 2...
Nc6 {[%clk 0:03:00]} 3. d4 {[%clk 0:02:48.4]} 3... cxd4 {[%clk 0:02:59.2]} 4.
Nxd4 {[%clk 0:02:49.3]} 4... Nf6 {[%clk 0:02:59.1]} 5. Nc3 {[%clk 0:02:48.9]}
5... e6 {[%clk 0:02:56.3]} 6. Ndb5 {[%clk 0:02:47.6]} 6... d6 {[%clk 0:02:43.5]}
7. Bf4 {[%clk 0:02:47.4]} 7... e5 {[%clk 0:02:43.4]} 8. Bg5 {[%clk 0:02:47.9]}
8... a6 {[%clk 0:02:44]} 9. Na3 {[%clk 0:02:46.9]} 9... b5 {[%clk 0:02:43.8]}
10. Nd5 {[%clk 0:02:45.2]} 10... Be7 {[%clk 0:02:43.4]} 11. Bxf6 {[%clk
0:02:44.5]} 11... Bxf6 {[%clk 0:02:43.7]} 12. c3 {[%clk 0:02:45]} 12... Ne7
{[%clk 0:02:44.2]} 13. Nxf6+ {[%clk 0:02:41.8]} 13... gxf6 {[%clk 0:02:45.1]}
14. Nc2 {[%clk 0:02:36.7]} 14... f5 {[%clk 0:02:45.2]} 15. exf5 {[%clk
0:02:35.3]} 15... Bxf5 {[%clk 0:02:42.8]} 16. Ne3 {[%clk 0:02:34.8]} 16... Be4
{[%clk 0:02:41.5]} 17. a4 {[%clk 0:02:34]} 17... b4 {[%clk 0:02:21.9]} 18. Nc4
{[%clk 0:02:09.5]} 18... Nc8 {[%clk 0:02:04.8]} 19. cxb4 {[%clk 0:02:00.1]}
19... O-O {[%clk 0:02:02]} 20. Be2 {[%clk 0:01:57.3]} 20... Qg5 {[%clk
0:01:57.8]} 21. Qd2 {[%clk 0:01:48.7]} 21... Qg6 {[%clk 0:01:34.4]} 22. f3
{[%clk 0:01:42.9]} 22... Bf5 {[%clk 0:01:15.3]} 23. O-O {[%clk 0:01:39.5]} 23...
Rd8 {[%clk 0:01:13.1]} 24. Nxe5 {[%clk 0:01:24.3]} 24... Qe6 {[%clk 0:01:07.7]}
25. Nc6 {[%clk 0:01:16.4]} 25... Rd7 {[%clk 0:01:07.8]} 26. Nd4 {[%clk
0:01:15.4]} 26... Qe5 {[%clk 0:01:07]} 27. Nxf5 {[%clk 0:01:14.1]} 27... Qxf5
{[%clk 0:01:07.9]} 28. Bd3 {[%clk 0:01:13.9]} 28... Qe5 {[%clk 0:01:06.5]} 29.
Rfe1 {[%clk 0:01:12.6]} 29... Qd4+ {[%clk 0:01:06.2]} 30. Kh1 {[%clk 0:01:11.7]}
30... Kh8 {[%clk 0:01:04.8]} 31. Re8+ {[%clk 0:01:05.7]} 1-0